fUSD/lending_fUSD_20250514
["ID","MTS","AMOUNT","RATE_DAILY","PERIOD"]
[361036345,1747209174539,-666.0,0.00019999,2]
[361036346,1747209174549,-666.0,0.00019999,2]
[361036347,1747209174559,-666.0,0.00019999,2]
[361036348,1747209174569,-666.0,0.00019999,2]
[361036349,1747209174578,-150.0,0.0002,2]
[361036350,1747209174588,-301.63884693,0.0002,2]
[361036351,1747209174598,-1484.58923329,0.0002,2]
[361036352,1747209174607,-1413.67077957,0.0002,5]
[361036353,1747209174617,-481.84093422,0.0002,2]
[361036354,1747209174626,-1253.61087371,0.0002,2]
[361036355,1747209174636,-509.33615954,0.0002,7]
[361036356,1747209174646,-1013.0,0.0002,6]
[361036357,1747209174656,-808.4778253,0.0002,7]
[361036358,1747209174666,-1011.50847106,0.0002,2]
[361036359,1747209174677,-1769.71302995,0.0002,2]
[361036360,1747209174686,-1831.1544542,0.0002,2]
[361036361,1747209174697,-6472.53134325,0.0002,14]
[361036362,1747209174706,-173.45422441,0.0002,2]
[361036363,1747209174717,-386.0,0.0002,2]
[361036364,1747209174727,-150.0,0.0002,2]
[361036365,1747209174737,-2000.0,0.0002,2]
[361036366,1747209174747,-2000.0,0.0002,2]
[361036367,1747209174757,-190.29236785,0.0002,5]
[361036368,1747209174767,-2000.0,0.0002,2]
[361036369,1747209174777,-2000.0,0.0002,2]
[361036370,1747209174788,-991.2657,0.0002,2]
[361036371,1747209174798,-2000.0,0.0002,2]
[361036372,1747209174807,-151.0,0.0002,2]
[361036373,1747209174817,-151.0,0.0002,2]
[361036374,1747209174827,-151.0,0.0002,2]
[361036375,1747209174838,-10000.0,0.0002,2]
[361036376,1747209174847,-4310.14021951,0.0002,2]
[361036377,1747209174857,-412525.44520003,0.0002,5]
[361036378,1747209174867,-8300.0,0.0002,4]
[361036379,1747209174877,-3183.6076364,0.0002,2]
[361036380,1747209174888,-3950.0,0.0002,2]
[361036381,1747209174898,-5477.09863244,0.0002,4]
[361036382,1747209174908,-5869.22792874,0.0002,2]
[361036383,1747209174918,-3016.0,0.0002,2]
[361036384,1747209174928,-700.0,0.0002,2]
[361036385,1747209174938,-159.0,0.0002,2]
[361036386,1747209174948,-200.0,0.0002,2]
[361036387,1747209174958,-4000.0,0.0002,4]
[361036388,1747209174969,-4000.0,0.0002,2]
[361036389,1747209174978,-4000.0,0.0002,2]
[361036390,1747209174988,-4000.0,0.0002,2]
[361036391,1747209174998,-4000.0,0.0002,2]
[361036392,1747209175008,-4000.0,0.0002,2]
[361036393,1747209175018,-4000.0,0.0002,2]
[361036394,1747209175027,-9001.77719482,0.0002001,2]
[361036395,1747209175038,-4963.89507234,0.0002001,2]
[361036396,1747209175048,-5772.0,0.0002001,2]
[361036397,1747209175058,-587.66344036,0.00020087,2]
[361036398,1747209175068,-194.72792766,0.00020087,2]
[361036399,1747209175078,-267.46074303,0.00020087,2]
[361036400,1747209175088,-1675.22454242,0.0002015,2]
[361036401,1747209175097,-1000.0,0.00020187,2]
[361036402,1747209175107,-198.56573352,0.00020233,2]
[361036403,1747209175118,-162.380719,0.00020274,2]
[361036404,1747209175127,-156.282688,0.00020435,2]
[361036405,1747209175138,-177.045515,0.00020435,2]
[361036406,1747209175147,-651.66,0.00020547,2]
[361036407,1747209175158,-209.854201,0.00020548,2]
[361036408,1747209175168,-184.1,0.00020548,2]
[361036409,1747209175178,-1045.09067922,0.0002058,2]
[361036410,1747209175188,-188.167651,0.0002064,2]
[361036411,1747209175198,-512.0,0.0002066,2]
[361036412,1747209175207,-156.282688,0.00020691,2]
[361036413,1747209175217,-3223.60981477,0.00020699,2]
[361036414,1747209175226,-2080.0,0.00020719,2]
[361036415,1747209175236,-8000.4,0.00020822,2]
[361036416,1747209175245,-168.3888056,0.00020822,2]
[361036417,1747209175255,-2080.0,0.00020933,2]
[361036418,1747209175264,-156.282688,0.00020946,2]
[361036419,1747209175273,-1155.56131499,0.00021,2]
[361036420,1747209175283,-190.7196619,0.00021,2]
[361036421,1747209175293,-9000.0,0.00021,2]
[361036422,1747209175302,-2080.0,0.00021146,2]
[361036423,1747209175311,-156.282688,0.00021202,2]
[361036424,1747209175321,-2080.0,0.0002136,2]
[361036425,1747209175330,-613.87734866,0.0002136,2]
[361036426,1747209175340,-6130.37,0.0002137,2]
[361036427,1747209175349,-174.61919141,0.0002137,2]
[361036428,1747209175358,-609.40698766,0.00021456,2]
[361036429,1747209175367,-201.93286099,0.00021456,2]
[361036430,1747209175376,-277.35679052,0.00021456,2]
[361036431,1747209175392,-156.282688,0.00021457,2]
[361036432,1747209175401,-442.8516722,0.00021513,2]
[361036433,1747209175411,-2080.0,0.00021574,2]
[361036434,1747209175422,-7319.0950758,0.000217,2]
[361036435,1747209175431,-2080.0,0.00021787,2]
[361036436,1747209175440,-5434.0,0.000218,2]
[361036437,1747209175449,-166.33081363,0.000219,2]
[361036438,1747209175459,-263.08,0.000219,31]
[361036439,1747209175469,-263.08,0.000219,31]
[361036440,1747209175478,-263.08,0.000219,31]
[361036441,1747209175488,-263.08,0.000219,31]
[361036442,1747209175498,-263.08,0.000219,31]
[361036443,1747209175508,-263.08,0.000219,31]
[361036444,1747209175518,-263.08,0.000219,31]
[361036445,1747209175528,-263.08,0.000219,31]
[361036446,1747209175540,-263.08,0.000219,31]
[361036447,1747209175550,-263.08,0.000219,31]
[361036448,1747209175560,-263.08,0.000219,31]
[361036449,1747209175571,-263.08,0.000219,31]
[361036450,1747209175834,-263.08,0.000219,31]
[361036451,1747209175844,-263.08,0.000219,31]
[361036452,1747209175854,-263.08,0.000219,31]
[361036453,1747209175863,-263.08,0.000219,31]
[361036454,1747209175873,-651.66,0.00021917,2]
[361036455,1747209175883,-155.0,0.00021917,2]
[361036456,1747209175893,-150.0,0.00021918,2]
[361036457,1747209175902,-643.46,0.00021918,2]
[361036458,1747209175913,-400.0,0.00021918,2]
[361036459,1747209175922,-400.0,0.00021918,2]
[361036460,1747209175932,-173.0,0.00021918,2]
[361036461,1747209175941,-514.24652087,0.00021918,2]
[361036462,1747209175951,-181.08010149,0.00021918,2]
[361036463,1747209175961,-470.15,0.00021929,2]
[361036464,1747209175970,-1910.69,0.00021945,30]
[361036465,1747209175980,-250.0,0.00021987,2]
[361036466,1747209175989,-607.81583274,0.00022,12]
[361036467,1747209175999,-247.92515188,0.00022,2]
[361036468,1747209176009,-500.0,0.00022,2]
[361036469,1747209176018,-208.5,0.00022,2]
[361036470,1747209176027,-310.0,0.00022,7]
[361036471,1747209176037,-23818.05,0.00022,7]
[361036472,1747209176046,-2916.65,0.00022,7]
[361036473,1747209176055,-208.5,0.00022,2]
[361036474,1747209176065,-7488.0,0.00022,2]
[361036475,1747209176074,-750.0,0.00022,2]
[361036476,1747209176084,-2080.0,0.00022001,2]
[361036477,1747209176095,-232.34254006,0.0002211,2]
[361036478,1747209176104,-374.0,0.000222,2]
[361036479,1747209176113,-765.0,0.000222,2]
[361036480,1747209176123,-236.0,0.000222,2]
[361036481,1747209176132,-345.5,0.00022207,15]
[361036482,1747209176141,-200.0,0.0002226,7]
[361036483,1747209176151,-187.78006525,0.00022466,2]
[361036484,1747209176161,-150.0,0.00022495,2]
[361036485,1747209176170,-576.0,0.00022562,2]
[361036486,1747209176180,-576.0,0.00022562,2]
[361036487,1747209176190,-576.0,0.00022562,2]
[361036488,1747209176201,-576.0,0.00022562,2]
[361036489,1747209176212,-576.0,0.00022562,2]
[361036490,1747209176222,-576.0,0.00022562,2]
[361036491,1747209176231,-576.0,0.00022562,2]
[361036492,1747209176241,-576.0,0.00022562,2]
[361036493,1747209176251,-576.0,0.00022562,2]
[361036494,1747209176260,-576.0,0.00022562,2]
[361036495,1747209176270,-576.0,0.00022562,2]
[361036496,1747209176279,-576.0,0.00022562,2]
[361036497,1747209176289,-576.0,0.00022562,2]
[361036498,1747209176298,-576.0,0.00022562,2]
[361036499,1747209176307,-312.0,0.00022562,2]
[361036500,1747209176316,-312.0,0.00022562,2]
[361036501,1747209176326,-312.0,0.00022562,2]
[361036502,1747209176335,-312.0,0.00022562,2]
[361036503,1747209176345,-312.0,0.00022562,2]
[361036504,1747209176357,-312.0,0.00022562,2]
[361036505,1747209176366,-312.0,0.00022562,2]
[361036506,1747209176375,-312.0,0.00022562,2]
[361036507,1747209176388,-312.0,0.00022562,2]
[361036508,1747209176400,-312.0,0.00022562,2]
[361036509,1747209176413,-312.0,0.00022562,2]
[361036510,1747209176423,-312.0,0.00022562,2]
[361036511,1747209176435,-312.0,0.00022562,2]
[361036512,1747209176446,-312.0,0.00022562,2]
[361036513,1747209176456,-576.0,0.00022562,2]
[361036514,1747209176467,-576.0,0.00022562,2]
[361036515,1747209176477,-576.0,0.00022562,2]
[361036516,1747209176486,-576.0,0.00022562,2]
[361036517,1747209176497,-576.0,0.00022562,2]
[361036518,1747209176506,-576.0,0.00022562,2]
[361036519,1747209176515,-576.0,0.00022562,2]
[361036520,1747209176524,-576.0,0.00022562,2]
[361036521,1747209176534,-576.0,0.00022562,2]
[361036522,1747209176543,-576.0,0.00022562,2]
[361036523,1747209176552,-576.0,0.00022562,2]
[361036524,1747209176560,-576.0,0.00022562,2]
[361036525,1747209176570,-576.0,0.00022562,2]
[361036526,1747209176579,-576.0,0.00022562,2]
[361036527,1747209176588,-312.0,0.00022562,2]
[361036528,1747209176597,-312.0,0.00022562,2]
[361036529,1747209176606,-312.0,0.00022562,2]
[361036530,1747209176615,-312.0,0.00022562,2]
[361036531,1747209176624,-312.0,0.00022562,2]
[361036532,1747209176633,-312.0,0.00022562,2]
[361036533,1747209176642,-312.0,0.00022562,2]
[361036534,1747209176652,-312.0,0.00022562,2]
[361036535,1747209176662,-312.0,0.00022562,2]
[361036536,1747209176672,-312.0,0.00022562,2]
[361036537,1747209176682,-312.0,0.00022562,2]
[361036538,1747209176692,-312.0,0.00022562,2]
[361036539,1747209176701,-312.0,0.00022562,2]
[361036540,1747209176711,-312.0,0.00022562,2]
[361036541,1747209176721,-576.0,0.00022562,2]
[361036542,1747209176731,-576.0,0.00022562,2]
[361036543,1747209176740,-576.0,0.00022562,2]
[361036544,1747209176750,-576.0,0.00022562,2]
[361036545,1747209176760,-576.0,0.00022562,2]
[361036546,1747209176769,-576.0,0.00022562,2]
[361036547,1747209176778,-576.0,0.00022562,2]
[361036548,1747209176788,-576.0,0.00022562,2]
[361036549,1747209176797,-576.0,0.00022562,2]
[361036550,1747209176806,-576.0,0.00022562,2]
[361036551,1747209176815,-576.0,0.00022562,2]
[361036552,1747209176825,-576.0,0.00022562,2]
[361036553,1747209176833,-576.0,0.00022562,2]
[361036554,1747209176842,-576.0,0.00022562,2]
[361036555,1747209176852,-312.0,0.00022562,2]
[361036556,1747209176862,-312.0,0.00022562,2]
[361036557,1747209176871,-312.0,0.00022562,2]
[361036558,1747209176880,-312.0,0.00022562,2]
[361036559,1747209176889,-312.0,0.00022562,2]
[361036560,1747209176898,-312.0,0.00022562,2]
[361036561,1747209176907,-312.0,0.00022562,2]
[361036562,1747209176916,-312.0,0.00022562,2]
[361036563,1747209176925,-312.0,0.00022562,2]
[361036564,1747209176934,-312.0,0.00022562,2]
[361036565,1747209176944,-312.0,0.00022562,2]
[361036566,1747209176953,-312.0,0.00022562,2]
[361036567,1747209176962,-312.0,0.00022562,2]
[361036568,1747209176972,-312.0,0.00022562,2]
[361036569,1747209176981,-576.0,0.00022562,2]
[361036570,1747209176990,-576.0,0.00022562,2]
[361036571,1747209176999,-576.0,0.00022562,2]
[361036572,1747209177009,-576.0,0.00022562,2]
[361036573,1747209177018,-576.0,0.00022562,2]
[361036574,1747209177028,-576.0,0.00022562,2]
[361036575,1747209177039,-576.0,0.00022562,2]
[361036576,1747209177048,-576.0,0.00022562,2]
[361036577,1747209177057,-576.0,0.00022562,2]
[361036578,1747209177066,-576.0,0.00022562,2]
[361036579,1747209177076,-576.0,0.00022562,2]
[361036580,1747209177086,-576.0,0.00022562,2]
[361036581,1747209177096,-576.0,0.00022562,2]
[361036582,1747209177106,-576.0,0.00022562,2]
[361036583,1747209177115,-312.0,0.00022562,2]
[361036584,1747209177125,-312.0,0.00022562,2]
[361036585,1747209177135,-312.0,0.00022562,2]
[361036586,1747209177144,-312.0,0.00022562,2]
[361036587,1747209177153,-312.0,0.00022562,2]
[361036588,1747209177163,-312.0,0.00022562,2]
[361036589,1747209177173,-312.0,0.00022562,2]
[361036590,1747209177183,-312.0,0.00022562,2]
[361036591,1747209177192,-312.0,0.00022562,2]
[361036592,1747209177201,-312.0,0.00022562,2]
[361036593,1747209177211,-312.0,0.00022562,2]
[361036594,1747209177221,-312.0,0.00022562,2]
[361036595,1747209177230,-312.0,0.00022562,2]
[361036596,1747209177240,-312.0,0.00022562,2]
[361036597,1747209177251,-576.0,0.00022562,2]
[361036598,1747209177260,-576.0,0.00022562,2]
[361036599,1747209177270,-198.56573352,0.00022567,2]
[361036600,1747209177280,-576.0,0.00022567,2]
[361036601,1747209177292,-576.0,0.00022567,2]
[361036602,1747209177301,-576.0,0.00022567,2]
[361036603,1747209177317,-576.0,0.00022567,2]
[361036604,1747209177335,-576.0,0.00022567,2]
[361036605,1747209177353,-576.0,0.00022567,2]
[361036606,1747209177372,-576.0,0.00022567,2]
[361036607,1747209177392,-576.0,0.00022567,2]
[361036608,1747209177412,-576.0,0.00022567,2]
[361036609,1747209177433,-576.0,0.00022567,2]
[361036610,1747209177454,-576.0,0.00022567,2]
[361036611,1747209177475,-576.0,0.00022567,2]
[361036612,1747209177495,-576.0,0.00022567,2]
[361036613,1747209177514,-312.0,0.00022567,2]
[361036614,1747209177528,-312.0,0.00022567,2]
[361036615,1747209177551,-312.0,0.00022567,2]
[361036616,1747209177566,-312.0,0.00022567,2]
[361036617,1747209177584,-312.0,0.00022567,2]
[361036618,1747209177601,-312.0,0.00022567,2]
[361036619,1747209177617,-312.0,0.00022567,2]
[361036620,1747209177634,-312.0,0.00022567,2]
[361036621,1747209177652,-312.0,0.00022567,2]
[361036622,1747209177665,-312.0,0.00022567,2]
[361036623,1747209177685,-312.0,0.00022567,2]
[361036624,1747209177701,-312.0,0.00022567,2]
[361036625,1747209177717,-312.0,0.00022567,2]
[361036626,1747209177734,-512.0,0.0002257,2]
[361036627,1747209177751,-223.44,0.00022603,2]
[361036628,1747209177768,-505.84211682,0.0002271,2]
[361036629,1747209177786,-312.71,0.0002274,2]
[361036630,1747209177802,-631.9550462,0.00022825,2]
[361036631,1747209177818,-209.40437684,0.00022825,2]
[361036632,1747209177834,-287.61899177,0.00022825,2]
[361036633,1747209177849,-200.0,0.00022956,13]
[361036634,1747209177865,-200.0,0.00022956,13]
[361036635,1747209177880,-200.0,0.00022956,13]
[361036636,1747209177896,-200.0,0.00022956,13]
[361036637,1747209177912,-200.0,0.00022956,13]
[361036638,1747209177927,-200.0,0.00022956,13]
[361036639,1747209177944,-200.0,0.00022956,13]
[361036640,1747209177962,-200.0,0.00022956,13]
[361036641,1747209177978,-200.0,0.00022956,13]
[361036642,1747209177994,-200.0,0.00022956,13]
[361036643,1747209178010,-200.0,0.00022956,13]
[361036644,1747209178025,-200.0,0.00022956,13]
[361036645,1747209178041,-200.0,0.00022956,13]
[361036646,1747209178056,-203.0,0.00022956,13]
[361036647,1747209178073,-200.0,0.00022956,2]
[361036648,1747209178091,-200.0,0.00022956,2]
[361036649,1747209178107,-200.0,0.00022956,2]
[361036650,1747209178123,-200.0,0.00022956,2]
[361036651,1747209178138,-200.0,0.00022956,2]
[361036652,1747209178153,-200.0,0.00022956,2]
[361036653,1747209178168,-200.0,0.00022956,2]
[361036654,1747209178184,-200.0,0.00022956,2]
[361036655,1747209178201,-200.0,0.00022956,2]
[361036656,1747209178216,-200.0,0.00022956,2]
[361036657,1747209178231,-200.0,0.00022956,2]
[361036658,1747209178245,-200.0,0.00022956,2]
[361036659,1747209178260,-200.0,0.00022956,2]
[361036660,1747209178276,-200.0,0.00022956,2]
[361036661,1747209178292,-200.0,0.00022956,2]
[361036662,1747209178308,-200.0,0.00022956,2]
[361036663,1747209178324,-200.0,0.00022956,2]
[361036664,1747209178338,-200.0,0.00022956,2]
[361036665,1747209178354,-200.0,0.00022956,2]
[361036666,1747209178370,-200.0,0.00022956,2]
[361036667,1747209178387,-200.0,0.00022956,2]
[361036668,1747209178404,-200.0,0.00022956,2]
[361036669,1747209178420,-200.0,0.00022956,2]
[361036670,1747209178436,-200.0,0.00022956,2]
[361036671,1747209178450,-200.0,0.00022956,2]
[361036672,1747209178464,-200.0,0.00022956,2]
[361036673,1747209178480,-200.0,0.00022956,2]
[361036674,1747209178495,-200.0,0.00022956,2]
[361036675,1747209178509,-200.0,0.00022956,2]
[361036676,1747209178525,-200.0,0.00022956,2]
[361036677,1747209178541,-200.0,0.00022956,2]
[361036678,1747209178557,-200.0,0.00022956,2]
[361036679,1747209178572,-200.0,0.00022956,2]
[361036680,1747209178588,-200.0,0.00022956,2]
[361036681,1747209178604,-331.0,0.00022956,2]
[361036682,1747209178619,-450.0,0.00023,14]
[361036683,1747209178634,-1504.58839435,0.00023,2]
[361036684,1747209178650,-264.9478508,0.00023,5]
[361036685,1747209178666,-1134.44,0.00023,14]
[361036686,1747209178682,-300.0,0.00023,2]
[361036687,1747209178697,-4000.0,0.00023,4]
[361036688,1747209178714,-194.72792766,0.00023014,2]
[361036689,1747209178729,-442.8516722,0.00023035,2]
[361036690,1747209178745,-150.0,0.00023071,2]
[361036691,1747209178760,-300.0,0.0002323,2]
[361036692,1747209178776,-651.66,0.00023287,2]
[361036693,1747209178792,-300.0,0.0002346,2]
[361036694,1747209178809,-200.0,0.000235,2]
[361036695,1747209178829,-23818.05,0.000235,7]
[361036696,1747209178844,-201.93286099,0.00023562,2]
[361036697,1747209178860,-2916.65,0.000236,7]
[361036698,1747209178876,-150.0,0.00023648,2]
[361036699,1747209178890,-300.0,0.0002369,2]
[361036700,1747209178906,-150.29,0.00023804,2]
[361036701,1747209178922,-150.0,0.00023804,2]
[361036702,1747209178936,-150.0,0.00023804,2]
[361036703,1747209178951,-150.0,0.00023804,2]
[361036704,1747209178967,-1690.74,0.00023836,2]
[361036705,1747209178982,-387.0,0.0002392,2]
[361036706,1747209178996,-1000.0,0.00024,4]
[361036707,1747209179011,-986.5729941,0.00024,2]
[361036708,1747209179025,-2065.35348756,0.00024,14]
[361036709,1747209179041,-5000.00763155,0.00024,5]
[361036710,1747209179055,-800.0,0.00024,2]
[361036711,1747209179069,-1170.57,0.00024109,2]
[361036712,1747209179084,-1170.57,0.00024109,2]
[361036713,1747209179100,-1170.57,0.00024109,2]
[361036714,1747209179114,-1170.57,0.00024109,2]
[361036715,1747209179130,-1170.57,0.00024109,2]
[361036716,1747209179145,-1170.57,0.00024109,2]
[361036717,1747209179159,-1170.57,0.00024109,2]
[361036718,1747209179174,-1170.57,0.00024109,2]
[361036719,1747209179189,-1170.57,0.00024109,2]
[361036720,1747209179204,-1170.57,0.00024109,2]
[361036721,1747209179218,-1170.57,0.00024109,2]
[361036722,1747209179232,-1170.57,0.00024109,2]
[361036723,1747209179248,-1170.57,0.00024109,2]
[361036724,1747209179262,-1170.57,0.00024109,2]
[361036725,1747209179276,-1170.57,0.00024109,2]
[361036726,1747209179291,-1170.57,0.00024109,2]
[361036727,1747209179305,-1170.57,0.00024109,2]
[361036728,1747209179319,-1170.57,0.00024109,2]
[361036729,1747209179333,-1170.57,0.00024109,2]
[361036730,1747209179348,-1170.57,0.00024109,2]
[361036731,1747209179363,-1170.57,0.00024109,2]
[361036732,1747209179377,-1170.57,0.00024109,2]
[361036733,1747209179393,-1170.57,0.00024109,2]
[361036734,1747209179410,-1170.62677887,0.00024109,2]
[361036735,1747209179425,-209.40437684,0.0002411,2]
[361036736,1747209179439,-470.15,0.00024192,2]
[361036737,1747209179455,-655.33738291,0.00024194,2]
[361036738,1747209179469,-217.15233878,0.00024194,2]
[361036739,1747209179487,-298.26089446,0.00024194,2]
[361036740,1747209179502,-407.73651868,0.0002421,2]
[361036741,1747209179518,-3573.46108677,0.0002421,2]
[361036742,1747209179534,-150.0,0.00024225,2]
[361036743,1747209179549,-204.16604681,0.00024252,2]
[361036744,1747209179564,-512.0,0.0002448,2]
[361036745,1747209179580,-1136.75136974,0.000245,2]
[361036746,1747209179596,-1115.51542406,0.000245,2]
[361036747,1747209179611,-1132.7578113,0.000245,2]
[361036748,1747209179626,-1059.60487275,0.000245,2]
[361036749,1747209179642,-1102.75102676,0.000245,2]
[361036750,1747209179657,-1033.58015686,0.000245,2]
[361036751,1747209180037,-442.8516722,0.00024557,2]
[361036752,1747209180048,-157.1036309,0.00024656,2]
[361036753,1747209180059,-538.51033058,0.00024657,30]
[361036754,1747209180070,-651.66,0.00024657,2]
[361036755,1747209180080,-1686.26,0.00024657,2]
[361036756,1747209180090,-1686.26,0.00024657,2]
[361036757,1747209180100,-1686.26,0.00024657,2]
[361036758,1747209180111,-1686.26,0.00024657,2]
[361036759,1747209180120,-1686.26,0.00024657,2]
[361036760,1747209180131,-1686.26,0.00024657,2]
[361036761,1747209180141,-1686.26,0.00024657,2]
[361036762,1747209180150,-1686.26,0.00024657,2]
[361036763,1747209180160,-1686.26,0.00024657,2]
[361036764,1747209180170,-1686.26,0.00024657,2]
[361036765,1747209180180,-1686.26,0.00024657,2]
[361036766,1747209180190,-1686.26,0.00024657,2]
[361036767,1747209180200,-1686.26,0.00024657,2]
[361036768,1747209180210,-1686.26,0.00024657,2]
[361036769,1747209180220,-1686.26,0.00024657,2]
[361036770,1747209180230,-1686.26,0.00024657,2]
[361036771,1747209180239,-1686.26,0.00024657,2]
[361036772,1747209180249,-1686.26,0.00024657,2]
[361036773,1747209180259,-1686.26,0.00024657,2]
[361036774,1747209180268,-1686.26,0.00024657,2]
[361036775,1747209180277,-1686.26,0.00024657,2]
[361036776,1747209180289,-1686.26,0.00024657,2]
[361036777,1747209180299,-1686.26,0.00024657,2]
[361036778,1747209180308,-1686.29261366,0.00024657,2]
[361036779,1747209180318,-5499.37,0.00024657,2]
[361036780,1747209180328,-5499.37,0.00024657,2]
[361036781,1747209180338,-5499.37,0.00024657,2]
[361036782,1747209180348,-5499.37,0.00024657,2]
[361036783,1747209180358,-5499.37,0.00024657,2]
[361036784,1747209180370,-5499.37,0.00024657,2]
[361036785,1747209180380,-5499.37,0.00024657,2]
[361036786,1747209180394,-5499.37,0.00024657,2]
[361036787,1747209180404,-5499.37,0.00024657,2]
[361036788,1747209180414,-5499.37,0.00024657,2]
[361036789,1747209180424,-5499.37,0.00024657,2]
[361036790,1747209180435,-5499.37,0.00024657,2]
[361036791,1747209180445,-5499.37,0.00024657,2]
[361036792,1747209180455,-5499.37,0.00024657,2]
[361036793,1747209180465,-5499.37,0.00024657,2]
[361036794,1747209180475,-5499.37,0.00024657,2]
[361036795,1747209180484,-5499.37,0.00024657,2]
[361036796,1747209180494,-5499.37,0.00024657,2]
[361036797,1747209180504,-5499.37,0.00024657,2]
[361036798,1747209180515,-5499.37,0.00024657,2]
[361036799,1747209180526,-5499.37,0.00024657,2]
[361036800,1747209180536,-5499.37,0.00024657,2]
[361036801,1747209180547,-5499.37,0.00024657,2]
[361036802,1747209180557,-5499.48862789,0.00024657,2]
[361036803,1747209180567,-150.0,0.00024658,2]
[361036804,1747209180576,-1000.0,0.00024658,2]
[361036805,1747209180586,-151.0,0.00024658,7]
[361036806,1747209180597,-159.125154,0.00024658,7]
[361036807,1747209180607,-643.46,0.00024658,2]
[361036808,1747209180618,-258.42,0.00024658,4]
[361036809,1747209180627,-315.21096698,0.00024658,2]
[361036810,1747209180637,-217.15233878,0.00024658,2]
[361036811,1747209180646,-500.0,0.00024672,2]
[361036812,1747209180657,-666.0,0.00024799,2]
[361036813,1747209180668,-666.0,0.00024799,2]
[361036814,1747209180678,-666.0,0.00024799,2]
[361036815,1747209180688,-666.0,0.00024799,2]
[361036816,1747209180698,-23818.05,0.000248,7]
[361036817,1747209180708,-613075.59289,0.000248,2]
[361036818,1747209180718,-263.08,0.000248,31]
[361036819,1747209180728,-263.08,0.000248,31]
[361036820,1747209180738,-263.08,0.000248,31]
[361036821,1747209180748,-263.08,0.000248,31]
[361036822,1747209180758,-263.08,0.000248,31]
[361036823,1747209180768,-263.08,0.000248,31]
[361036824,1747209180778,-263.08,0.000248,31]
[361036825,1747209180788,-263.08,0.000248,31]
[361036826,1747209180798,-263.08,0.000248,31]
[361036827,1747209180808,-263.08,0.000248,31]
[361036828,1747209180818,-263.08,0.000248,31]
[361036829,1747209180828,-263.08,0.000248,31]
[361036830,1747209180837,-263.08,0.000248,31]
[361036831,1747209180847,-263.08,0.000248,31]
[361036832,1747209180856,-263.08,0.000248,31]
[361036833,1747209180866,-263.08,0.000248,31]
[361036834,1747209180875,-263.08,0.000248,31]
[361036835,1747209180885,-263.08,0.000248,31]
[361036836,1747209180895,-263.08,0.000248,31]
[361036837,1747209180904,-263.08,0.000248,31]
[361036838,1747209180914,-263.08,0.000248,31]
[361036839,1747209180925,-150.0,0.00024802,2]
[361036840,1747209180934,-666.0,0.00024899,2]
[361036841,1747209180944,-666.0,0.00024899,2]
[361036842,1747209180954,-666.0,0.00024899,2]
[361036843,1747209180964,-612.49700204,0.00024899,2]
[361036844,1747209180974,-2916.65,0.000249,7]